[Event "Late-Titled-Tuesday-Blitz-January-30-2024"]
[Site "Chess.com"]
[Date "2024.01.30"]
[Round "11"]
[White "brm72"]
[Black "Vasily85"]
[Result "1-0"]
[WhiteElo "2688"]
[BlackElo "2515"]
[TimeControl "180+1"]
[EndTime "16:04:44 PST"]
[Termination "brm72 won on time"]

1. e4 {[%clk 0:03:00.9]} 1... c5 {[%clk 0:02:58.7]} 2. Nf3 {[%clk 0:03:01.1]}
2... g6 {[%clk 0:02:56.5]} 3. d4 {[%clk 0:03:01]} 3... cxd4 {[%clk 0:02:57.4]}
4. Nxd4 {[%clk 0:03:01.9]} 4... Nc6 {[%clk 0:02:56.7]} 5. c4 {[%clk 0:02:59.2]}
5... Nf6 {[%clk 0:02:56.5]} 6. Nc3 {[%clk 0:02:58.2]} 6... d6 {[%clk 0:02:56.9]}
7. Be2 {[%clk 0:02:55.4]} 7... Nxd4 {[%clk 0:02:57.3]} 8. Qxd4 {[%clk
0:02:54.9]} 8... Bg7 {[%clk 0:02:57.9]} 9. O-O {[%clk 0:02:49.4]} 9... O-O
{[%clk 0:02:58.1]} 10. Qd3 {[%clk 0:02:47.6]} 10... a5 {[%clk 0:02:50.7]} 11.
Be3 {[%clk 0:02:38.7]} 11... a4 {[%clk 0:02:48.4]} 12. b4 {[%clk 0:02:30.3]}
12... axb3 {[%clk 0:02:30.6]} 13. axb3 {[%clk 0:02:23.5]} 13... Rxa1 {[%clk
0:02:31.5]} 14. Rxa1 {[%clk 0:02:21.6]} 14... Nxe4 {[%clk 0:02:32]} 15. Qxe4
{[%clk 0:02:20.4]} 15... Bxc3 {[%clk 0:02:31.7]} 16. Rd1 {[%clk 0:02:12.7]}
16... Qc7 {[%clk 0:02:24.9]} 17. h4 {[%clk 0:02:11.4]} 17... Bf5 {[%clk
0:02:22.4]} 18. Qf3 {[%clk 0:02:07.1]} 18... Bf6 {[%clk 0:01:53.6]} 19. h5
{[%clk 0:02:07]} 19... Ra8 {[%clk 0:01:52.9]} 20. g4 {[%clk 0:01:59]} 20... Bc2
{[%clk 0:01:45.1]} 21. Rd2 {[%clk 0:01:45.5]} 21... Bxb3 {[%clk 0:01:45.2]} 22.
g5 {[%clk 0:01:43.9]} 22... Be5 {[%clk 0:01:36.8]} 23. Bd4 {[%clk 0:01:35.7]}
23... Bxd4 {[%clk 0:01:18.1]} 24. Rxd4 {[%clk 0:01:33.8]} 24... Ra1+ {[%clk
0:00:33]} 25. Kh2 {[%clk 0:01:20.1]} 25... d5+ {[%clk 0:00:29]} 26. Kh3 {[%clk
0:01:20.1]} 26... Bxc4 {[%clk 0:00:22.6]} 27. Bxc4 {[%clk 0:01:13.6]} 27... dxc4
{[%clk 0:00:23.5]} 28. Qxb7 {[%clk 0:01:03.2]} 28... Ra3+ {[%clk 0:00:16.7]} 29.
f3 {[%clk 0:00:55.4]} 29... Rxf3+ {[%clk 0:00:01.2]} 30. Qxf3 {[%clk 0:00:54.7]}
1-0

[Event "Late-Titled-Tuesday-Blitz-January-30-2024"]
[Site "Chess.com"]
[Date "2024.01.30"]
[Round "11"]
[White "BogdanDeac"]
[Black "Elsa167"]
[Result "0-1"]
[WhiteElo "3038"]
[BlackElo "2913"]
[TimeControl "180+1"]
[EndTime "16:04:48 PST"]
[Termination "Elsa167 won by resignation"]

1. d4 {[%clk 0:03:00.9]} 1... Nf6 {[%clk 0:02:58.3]} 2. Nf3 {[%clk 0:03:01.5]}
2... e6 {[%clk 0:02:57.7]} 3. Bf4 {[%clk 0:02:58.6]} 3... b6 {[%clk 0:02:58]} 4.
e3 {[%clk 0:02:58.4]} 4... Bb7 {[%clk 0:02:58.6]} 5. c4 {[%clk 0:02:59]} 5...
Bb4+ {[%clk 0:02:58.1]} 6. Nfd2 {[%clk 0:02:59.1]} 6... Ne4 {[%clk 0:02:38.6]}
7. a3 {[%clk 0:02:57]} 7... Bxd2+ {[%clk 0:02:38.2]} 8. Nxd2 {[%clk 0:02:56.8]}
8... Nxd2 {[%clk 0:02:38.5]} 9. Qxd2 {[%clk 0:02:57]} 9... O-O {[%clk
0:02:36.9]} 10. d5 {[%clk 0:02:56.3]} 10... d6 {[%clk 0:02:34.4]} 11. Be2 {[%clk
0:02:53.4]} 11... a5 {[%clk 0:02:31]} 12. b3 {[%clk 0:02:52.9]} 12... Nd7 {[%clk
0:02:26.8]} 13. Rd1 {[%clk 0:02:52]} 13... e5 {[%clk 0:02:25.2]} 14. Bg3 {[%clk
0:02:51.7]} 14... Nc5 {[%clk 0:02:18.7]} 15. Qc2 {[%clk 0:02:51.3]} 15... f5
{[%clk 0:02:19.1]} 16. f3 {[%clk 0:02:51.1]} 16... Qg5 {[%clk 0:02:13]} 17. f4
{[%clk 0:02:27.1]} 17... exf4 {[%clk 0:02:12.5]} 18. exf4 {[%clk 0:02:27.3]}
18... Qf6 {[%clk 0:02:10.2]} 19. Bf2 {[%clk 0:02:18.7]} 19... Rae8 {[%clk
0:02:08]} 20. g3 {[%clk 0:02:11.3]} 20... Re7 {[%clk 0:01:49.3]} 21. Kf1 {[%clk
0:02:05.6]} 21... Rfe8 {[%clk 0:01:43.3]} 22. Bh5 {[%clk 0:02:02.4]} 22... g6
{[%clk 0:01:39.1]} 23. Bd4 {[%clk 0:01:57.2]} 23... Qf7 {[%clk 0:01:17.1]} 24.
Bf3 {[%clk 0:01:57.3]} 24... a4 {[%clk 0:00:57.3]} 25. b4 {[%clk 0:01:56.4]}
25... Nb3 {[%clk 0:00:57.5]} 26. Bf2 {[%clk 0:01:56.6]} 26... b5 {[%clk
0:00:37.6]} 27. cxb5 {[%clk 0:01:45.3]} 27... Re4 {[%clk 0:00:37.8]} 28. Qd3
{[%clk 0:01:37]} 28... g5 {[%clk 0:00:16.7]} 29. fxg5 {[%clk 0:01:29.5]} 29...
R4e5 {[%clk 0:00:16.2]} 30. Kg2 {[%clk 0:01:22.9]} 30... f4 {[%clk 0:00:16.4]}
31. Rhe1 {[%clk 0:01:18.9]} 31... fxg3 {[%clk 0:00:14.2]} 32. Bxg3 {[%clk
0:01:00.6]} 32... Rxg5 {[%clk 0:00:09.9]} 33. Rxe8+ {[%clk 0:01:00]} 33... Qxe8
{[%clk 0:00:10.8]} 34. Re1 {[%clk 0:00:52.2]} 34... Qxe1 {[%clk 0:00:10.6]} 0-1

[Event "Late-Titled-Tuesday-Blitz-January-30-2024"]
[Site "Chess.com"]
[Date "2024.01.30"]
[Round "11"]
[White "jinbojinbo"]
[Black "Matalon"]
[Result "1-0"]
[WhiteElo "2634"]
[BlackElo "2497"]
[TimeControl "180+1"]
[EndTime "16:04:52 PST"]
[Termination "jinbojinbo won by resignation"]

1. Nf3 {[%clk 0:03:00.9]} 1... Nf6 {[%clk 0:02:33.2]} 2. g3 {[%clk 0:02:59.6]}
2... g6 {[%clk 0:02:32.9]} 3. Bg2 {[%clk 0:02:59]} 3... Bg7 {[%clk 0:02:33.5]}
4. O-O {[%clk 0:02:58.6]} 4... O-O {[%clk 0:02:32.9]} 5. d3 {[%clk 0:02:59.5]}
5... d6 {[%clk 0:02:31.3]} 6. c4 {[%clk 0:02:58.3]} 6... e5 {[%clk 0:02:28.6]}
7. Nc3 {[%clk 0:02:57.6]} 7... Nc6 {[%clk 0:02:27.9]} 8. Rb1 {[%clk 0:02:57]}
8... a5 {[%clk 0:02:26.8]} 9. a3 {[%clk 0:02:57.1]} 9... Nd4 {[%clk 0:02:26.9]}
10. e3 {[%clk 0:02:49.7]} 10... Nxf3+ {[%clk 0:02:25.6]} 11. Bxf3 {[%clk
0:02:50.6]} 11... c6 {[%clk 0:02:25]} 12. b4 {[%clk 0:02:46.7]} 12... axb4
{[%clk 0:02:24.8]} 13. axb4 {[%clk 0:02:47.6]} 13... d5 {[%clk 0:02:24.8]} 14.
b5 {[%clk 0:02:39.6]} 14... Be6 {[%clk 0:02:23.7]} 15. Qe2 {[%clk 0:02:31.4]}
15... Qd7 {[%clk 0:02:09.3]} 16. Rd1 {[%clk 0:02:29.8]} 16... Rfd8 {[%clk
0:01:56.2]} 17. Bb2 {[%clk 0:02:28.6]} 17... h5 {[%clk 0:01:39.2]} 18. h4 {[%clk
0:02:26.8]} 18... Bg4 {[%clk 0:01:28.7]} 19. Bxg4 {[%clk 0:02:22.8]} 19... hxg4
{[%clk 0:01:22.4]} 20. Ra1 {[%clk 0:02:14.5]} 20... Rxa1 {[%clk 0:00:56.6]} 21.
Rxa1 {[%clk 0:02:15.4]} 21... d4 {[%clk 0:00:56.2]} 22. exd4 {[%clk 0:02:12.4]}
22... exd4 {[%clk 0:00:55.7]} 23. bxc6 {[%clk 0:02:07.8]} 23... bxc6 {[%clk
0:00:50.9]} 24. Ne4 {[%clk 0:02:07.8]} 24... Re8 {[%clk 0:00:41.5]} 25. Nxf6+
{[%clk 0:02:07.5]} 25... Bxf6 {[%clk 0:00:40.5]} 26. Qd2 {[%clk 0:02:03.1]}
26... Qf5 {[%clk 0:00:39.4]} 27. Ba3 {[%clk 0:01:30.8]} 27... Qf3 {[%clk
0:00:37.5]} 28. Re1 {[%clk 0:01:29.9]} 28... Ra8 {[%clk 0:00:21.3]} 29. Bc5
{[%clk 0:01:26.4]} 29... Kg7 {[%clk 0:00:19.3]} 30. Qe2 {[%clk 0:01:19.5]} 30...
Ra1 {[%clk 0:00:16]} 31. Qd2 {[%clk 0:00:59]} 31... Rxe1+ {[%clk 0:00:15]} 32.
Qxe1 {[%clk 0:00:59.9]} 32... Qxd3 {[%clk 0:00:15]} 33. Qe8 {[%clk 0:01:00.6]}
33... Qxc4 {[%clk 0:00:15]} 34. Qxc6 {[%clk 0:00:57.4]} 34... d3 {[%clk
0:00:13.9]} 35. Bf8+ {[%clk 0:00:57]} 35... Kxf8 {[%clk 0:00:12.3]} 36. Qxc4
{[%clk 0:00:57.9]} 36... d2 {[%clk 0:00:12.3]} 37. Qb4+ {[%clk 0:00:55.4]} 37...
Kg7 {[%clk 0:00:10.2]} 38. Qxd2 {[%clk 0:00:56.3]} 1-0

[Event "Late-Titled-Tuesday-Blitz-January-30-2024"]
[Site "Chess.com"]
[Date "2024.01.30"]
[Round "11"]
[White "bn1462"]
[Black "GoValya"]
[Result "0-1"]
[WhiteElo "1974"]
[BlackElo "2275"]
[TimeControl "180+1"]
[EndTime "16:05:00 PST"]
[Termination "GoValya won on time"]

1. d4 {[%clk 0:03:00.9]} 1... Nf6 {[%clk 0:02:57.9]} 2. c4 {[%clk 0:03:00.7]}
2... g6 {[%clk 0:02:57.8]} 3. Nc3 {[%clk 0:02:59.3]} 3... d5 {[%clk 0:02:58]} 4.
Nf3 {[%clk 0:02:58.2]} 4... c6 {[%clk 0:02:55.3]} 5. Qb3 {[%clk 0:02:55.6]} 5...
dxc4 {[%clk 0:02:48.2]} 6. Qxc4 {[%clk 0:02:56.5]} 6... Bg7 {[%clk 0:02:48.7]}
7. e4 {[%clk 0:02:53.1]} 7... O-O {[%clk 0:02:47.1]} 8. Be2 {[%clk 0:02:45.4]}
8... b5 {[%clk 0:02:39.3]} 9. Qb3 {[%clk 0:02:44.2]} 9... Be6 {[%clk 0:02:39.4]}
10. Qc2 {[%clk 0:02:30.9]} 10... Nbd7 {[%clk 0:02:26.2]} 11. O-O {[%clk
0:02:26.6]} 11... Rc8 {[%clk 0:02:20.7]} 12. Rd1 {[%clk 0:02:25]} 12... Bg4
{[%clk 0:02:15.7]} 13. Be3 {[%clk 0:02:06.7]} 13... Qc7 {[%clk 0:02:07]} 14. h3
{[%clk 0:02:06]} 14... Bxf3 {[%clk 0:02:06.9]} 15. Bxf3 {[%clk 0:02:06.9]} 15...
e5 {[%clk 0:02:05.5]} 16. Rac1 {[%clk 0:01:47.8]} 16... Nb6 {[%clk 0:01:57.8]}
17. Nxb5 {[%clk 0:01:44.3]} 17... Qe7 {[%clk 0:01:52.9]} 18. Nc3 {[%clk
0:01:35.7]} 18... Nc4 {[%clk 0:01:46.9]} 19. b3 {[%clk 0:01:15.4]} 19... Nxe3
{[%clk 0:01:39.3]} 20. fxe3 {[%clk 0:01:16.3]} 20... Bh6 {[%clk 0:01:38.6]} 21.
Rd3 {[%clk 0:00:42.1]} 21... exd4 {[%clk 0:01:37.5]} 22. exd4 {[%clk 0:00:38.4]}
22... Bxc1 {[%clk 0:01:37]} 23. Qxc1 {[%clk 0:00:39.3]} 23... Rfd8 {[%clk
0:01:30.7]} 24. e5 {[%clk 0:00:31.9]} 24... Nd5 {[%clk 0:01:27]} 25. Ne4 {[%clk
0:00:30.2]} 25... Kg7 {[%clk 0:01:18.8]} 26. Nd6 {[%clk 0:00:27.7]} 26... Rc7
{[%clk 0:00:58.9]} 27. Qc5 {[%clk 0:00:13.6]} 27... Qe6 {[%clk 0:00:53.3]} 28.
Bxd5 {[%clk 0:00:08.6]} 28... Qxd5 {[%clk 0:00:52.1]} 29. Rf3 {[%clk 0:00:03.2]}
29... Qxc5 {[%clk 0:00:45.2]} 30. dxc5 {[%clk 0:00:04.1]} 30... Re7 {[%clk
0:00:45.8]} 31. Kh2 {[%clk 0:00:01.2]} 31... Rdd7 {[%clk 0:00:44.6]} 0-1

[Event "Late-Titled-Tuesday-Blitz-January-30-2024"]
[Site "Chess.com"]
[Date "2024.01.30"]
[Round "11"]
[White "RebecaJimnz"]
[Black "shirovin"]
[Result "0-1"]
[WhiteElo "2271"]
[BlackElo "2081"]
[TimeControl "180+1"]
[EndTime "16:05:05 PST"]
[Termination "shirovin won by resignation"]

1. e4 {[%clk 0:01:13.4]} 1... b6 {[%clk 0:02:55.7]} 2. d4 {[%clk 0:01:13.3]}
2... Bb7 {[%clk 0:02:56.2]} 3. Bd3 {[%clk 0:01:14]} 3... e6 {[%clk 0:02:56.4]}
4. Nf3 {[%clk 0:01:14.5]} 4... Nf6 {[%clk 0:02:53.4]} 5. O-O {[%clk 0:01:15]}
5... Nxe4 {[%clk 0:02:52.2]} 6. Re1 {[%clk 0:01:15]} 6... Nf6 {[%clk 0:02:47.6]}
7. Bg5 {[%clk 0:01:14.7]} 7... Be7 {[%clk 0:02:47.4]} 8. Nbd2 {[%clk 0:01:14.7]}
8... d6 {[%clk 0:02:47.2]} 9. c3 {[%clk 0:01:14.6]} 9... Nbd7 {[%clk 0:02:46.9]}
10. Qe2 {[%clk 0:01:13.4]} 10... O-O {[%clk 0:02:46.4]} 11. Rad1 {[%clk
0:01:08.4]} 11... Re8 {[%clk 0:02:44.5]} 12. h4 {[%clk 0:01:06.7]} 12... a6
{[%clk 0:02:43.5]} 13. Bb1 {[%clk 0:01:00.9]} 13... h6 {[%clk 0:02:36.7]} 14.
Bf4 {[%clk 0:00:54]} 14... Nf8 {[%clk 0:02:29.1]} 15. Qd3 {[%clk 0:00:52.6]}
15... c5 {[%clk 0:02:23.3]} 16. Ng5 {[%clk 0:00:29]} 16... hxg5 {[%clk
0:02:09.4]} 17. hxg5 {[%clk 0:00:29.9]} 17... Nd5 {[%clk 0:02:08.5]} 18. Bg3
{[%clk 0:00:14.1]} 18... Bxg5 {[%clk 0:02:03]} 19. f3 {[%clk 0:00:14.5]} 19...
Bf4 {[%clk 0:01:52.9]} 20. Bxf4 {[%clk 0:00:09.2]} 20... Nxf4 {[%clk 0:01:52.5]}
21. Qe3 {[%clk 0:00:09.9]} 21... Qg5 {[%clk 0:01:51.8]} 22. g4 {[%clk
0:00:08.2]} 22... Nh3+ {[%clk 0:01:50.4]} 23. Kg2 {[%clk 0:00:08.3]} 23... Qxe3
{[%clk 0:01:50.2]} 24. Rxe3 {[%clk 0:00:08.1]} 24... Nf4+ {[%clk 0:01:49.9]} 25.
Kg3 {[%clk 0:00:08]} 25... e5 {[%clk 0:01:48.2]} 26. Rh1 {[%clk 0:00:08.3]}
26... Rad8 {[%clk 0:01:45.1]} 27. Ne4 {[%clk 0:00:06.3]} 27... Bxe4 {[%clk
0:01:39.9]} 28. Bxe4 {[%clk 0:00:05.8]} 28... d5 {[%clk 0:01:39.5]} 29. Bf5
{[%clk 0:00:04.9]} 29... cxd4 {[%clk 0:01:38]} 30. cxd4 {[%clk 0:00:05.1]} 30...
N4g6 {[%clk 0:01:37.7]} 31. Re2 {[%clk 0:00:04.3]} 31... exd4 {[%clk 0:01:36.9]}
32. Reh2 {[%clk 0:00:04.6]} 32... Re3 {[%clk 0:01:30.6]} 33. Kf2 {[%clk
0:00:03]} 33... Rde8 {[%clk 0:01:29.2]} 34. f4 {[%clk 0:00:02.3]} 34... Re2+
{[%clk 0:01:28.5]} 35. Kf1 {[%clk 0:00:02.8]} 35... Re1+ {[%clk 0:01:26.5]} 36.
Kf2 {[%clk 0:00:03]} 36... R8e2+ {[%clk 0:01:26.1]} 37. Kf3 {[%clk 0:00:03.7]}
37... Re3+ {[%clk 0:01:24.6]} 38. Kf2 {[%clk 0:00:03.5]} 38... Rxh1 {[%clk
0:01:19.7]} 39. Rxh1 {[%clk 0:00:03.1]} 39... Nxf4 {[%clk 0:01:18.9]} 40. Rc1
{[%clk 0:00:01.9]} 40... Nd3+ {[%clk 0:01:16.6]} 41. Bxd3 {[%clk 0:00:01.8]}
41... Rxd3 {[%clk 0:01:17.2]} 42. Rc8 {[%clk 0:00:02.4]} 42... Rd2+ {[%clk
0:01:16.6]} 43. Kf3 {[%clk 0:00:02.9]} 43... d3 {[%clk 0:01:16]} 44. Ke3 {[%clk
0:00:02.7]} 44... Rxb2 {[%clk 0:01:15]} 45. Kxd3 {[%clk 0:00:02.4]} 45... Rxa2
{[%clk 0:01:15.1]} 46. Kd4 {[%clk 0:00:03]} 46... Ra4+ {[%clk 0:01:13.7]} 47.
Kxd5 {[%clk 0:00:03.9]} 47... Rxg4 {[%clk 0:01:13.4]} 48. Kd6 {[%clk 0:00:04.8]}
48... Re4 {[%clk 0:01:10.8]} 49. Rc5 {[%clk 0:00:04]} 49... bxc5 {[%clk
0:01:09.7]} 0-1

[Event "Late-Titled-Tuesday-Blitz-January-30-2024"]
[Site "Chess.com"]
[Date "2024.01.30"]
[Round "11"]
[White "zverr1"]
[Black "LastHeroJr"]
[Result "0-1"]
[WhiteElo "2560"]
[BlackElo "2492"]
[TimeControl "180+1"]
[EndTime "16:05:06 PST"]
[Termination "LastHeroJr won on time"]

1. e4 {[%clk 0:03:00.9]} 1... e5 {[%clk 0:02:59]} 2. Nf3 {[%clk 0:03:00.9]} 2...
Nc6 {[%clk 0:02:59.2]} 3. Bc4 {[%clk 0:03:01.2]} 3... Nf6 {[%clk 0:02:58.9]} 4.
Ng5 {[%clk 0:03:01.3]} 4... d5 {[%clk 0:02:57.7]} 5. exd5 {[%clk 0:03:02.2]}
5... Na5 {[%clk 0:02:58]} 6. Bb5+ {[%clk 0:03:02.8]} 6... c6 {[%clk 0:02:58.5]}
7. dxc6 {[%clk 0:03:03.7]} 7... bxc6 {[%clk 0:02:59.4]} 8. Be2 {[%clk
0:03:04.5]} 8... h6 {[%clk 0:02:50.2]} 9. Nh3 {[%clk 0:03:03.1]} 9... Bxh3
{[%clk 0:02:29]} 10. gxh3 {[%clk 0:03:04]} 10... Bd6 {[%clk 0:02:15.5]} 11. d3
{[%clk 0:02:59.4]} 11... O-O {[%clk 0:02:11.9]} 12. O-O {[%clk 0:02:56]} 12...
c5 {[%clk 0:02:01.1]} 13. Bf3 {[%clk 0:02:54.4]} 13... Rb8 {[%clk 0:02:00.1]}
14. Nc3 {[%clk 0:02:54.1]} 14... Qc7 {[%clk 0:01:52.8]} 15. Kh1 {[%clk
0:02:52.1]} 15... Nc6 {[%clk 0:01:49.7]} 16. Rg1 {[%clk 0:02:49.5]} 16... Kh8
{[%clk 0:01:42.5]} 17. Nd5 {[%clk 0:01:45.6]} 17... Nxd5 {[%clk 0:01:39.9]} 18.
Bxd5 {[%clk 0:01:46.5]} 18... Ne7 {[%clk 0:01:22.6]} 19. Qh5 {[%clk 0:00:35.1]}
19... Nxd5 {[%clk 0:01:03.2]} 20. Bxh6 {[%clk 0:00:33.6]} 20... g6 {[%clk
0:01:03]} 21. Qh4 {[%clk 0:00:17.8]} 21... Be7 {[%clk 0:00:50.7]} 22. Bg5+
{[%clk 0:00:08.5]} 22... Kg8 {[%clk 0:00:48.9]} 23. c4 {[%clk 0:00:08.8]} 23...
Bxg5 {[%clk 0:00:47.6]} 24. Rxg5 {[%clk 0:00:09.7]} 24... Nf4 {[%clk 0:00:45.6]}
25. f3 {[%clk 0:00:06.2]} 25... Rbd8 {[%clk 0:00:43.1]} 26. Re1 {[%clk 0:00:04]}
26... Rfe8 {[%clk 0:00:38]} 27. Rgg1 {[%clk 0:00:01.3]} 27... Rxd3 {[%clk
0:00:34.4]} 28. Qf6 {[%clk 0:00:01.9]} 28... Qe7 {[%clk 0:00:25]} 0-1

[Event "Late-Titled-Tuesday-Blitz-January-30-2024"]
[Site "Chess.com"]
[Date "2024.01.30"]
[Round "11"]
[White "BebeBonito2022"]
[Black "Onthequiet"]
[Result "0-1"]
[WhiteElo "2324"]
[BlackElo "2447"]
[TimeControl "180+1"]
[EndTime "16:05:07 PST"]
[Termination "Onthequiet won on time"]

1. d4 {[%clk 0:03:00.9]} 1... d5 {[%clk 0:02:58.5]} 2. c4 {[%clk 0:03:01.1]}
2... e6 {[%clk 0:02:58.5]} 3. Nc3 {[%clk 0:03:01.3]} 3... Nf6 {[%clk 0:02:58.5]}
4. cxd5 {[%clk 0:03:01.6]} 4... exd5 {[%clk 0:02:57.9]} 5. Bg5 {[%clk
0:03:01.7]} 5... Be7 {[%clk 0:02:57.8]} 6. e3 {[%clk 0:03:02.3]} 6... c6 {[%clk
0:02:57.9]} 7. Bd3 {[%clk 0:03:02.5]} 7... Nbd7 {[%clk 0:02:57.5]} 8. Nge2
{[%clk 0:03:02.5]} 8... Nh5 {[%clk 0:02:56.7]} 9. Bxe7 {[%clk 0:03:01.9]} 9...
Qxe7 {[%clk 0:02:57.6]} 10. O-O {[%clk 0:03:01.2]} 10... g6 {[%clk 0:02:57.2]}
11. Qd2 {[%clk 0:02:55.6]} 11... f5 {[%clk 0:02:57.3]} 12. Rab1 {[%clk
0:02:43.1]} 12... a5 {[%clk 0:02:56.4]} 13. a3 {[%clk 0:02:31.5]} 13... b5
{[%clk 0:02:52.6]} 14. Rbe1 {[%clk 0:02:25.9]} 14... Nb6 {[%clk 0:02:49.8]} 15.
Nf4 {[%clk 0:02:19.6]} 15... Nf6 {[%clk 0:02:47.6]} 16. Bb1 {[%clk 0:02:15]}
16... Nc4 {[%clk 0:02:45.3]} 17. Qc1 {[%clk 0:02:15]} 17... O-O {[%clk
0:02:38.6]} 18. Nd3 {[%clk 0:02:15.2]} 18... Ne4 {[%clk 0:02:36.1]} 19. f3
{[%clk 0:02:11.3]} 19... Ned2 {[%clk 0:02:33.9]} 20. Rf2 {[%clk 0:02:01.7]}
20... Nxb1 {[%clk 0:02:31.2]} 21. Nxb1 {[%clk 0:01:51]} 21... Bd7 {[%clk
0:02:23.6]} 22. b3 {[%clk 0:01:51.3]} 22... Nd6 {[%clk 0:02:17.7]} 23. Nc5
{[%clk 0:01:51.5]} 23... a4 {[%clk 0:02:06.2]} 24. b4 {[%clk 0:01:42.3]} 24...
Nc4 {[%clk 0:02:05.1]} 25. Rfe2 {[%clk 0:01:35.5]} 25... Rae8 {[%clk 0:01:51]}
26. Nd2 {[%clk 0:01:26.8]} 26... Bc8 {[%clk 0:01:47.6]} 27. Nxc4 {[%clk
0:01:26.2]} 27... dxc4 {[%clk 0:01:45.3]} 28. e4 {[%clk 0:01:22.3]} 28... f4
{[%clk 0:01:44.9]} 29. Qd2 {[%clk 0:01:07]} 29... Rd8 {[%clk 0:01:41.8]} 30. Qc3
{[%clk 0:00:54.8]} 30... Qg7 {[%clk 0:01:37]} 31. Rd1 {[%clk 0:00:49]} 31... g5
{[%clk 0:01:31.4]} 32. Rc2 {[%clk 0:00:27.4]} 32... Rfe8 {[%clk 0:01:20]} 33. d5
{[%clk 0:00:27.1]} 33... Qxc3 {[%clk 0:01:19]} 34. Rxc3 {[%clk 0:00:27.5]} 34...
cxd5 {[%clk 0:01:19.9]} 35. exd5 {[%clk 0:00:16.9]} 35... Re2 {[%clk 0:01:15]}
36. Rcc1 {[%clk 0:00:14.7]} 36... Bf5 {[%clk 0:01:10.2]} 37. Re1 {[%clk
0:00:10]} 37... Rxe1+ {[%clk 0:01:07]} 38. Rxe1 {[%clk 0:00:10.3]} 38... Rxd5
{[%clk 0:01:07.6]} 39. Re8+ {[%clk 0:00:04.8]} 39... Kf7 {[%clk 0:01:06.9]} 40.
Rb8 {[%clk 0:00:05.3]} 40... c3 {[%clk 0:01:06.5]} 41. Rc8 {[%clk 0:00:01.4]}
41... c2 {[%clk 0:01:03.3]} 0-1

[Event "Late-Titled-Tuesday-Blitz-January-30-2024"]
[Site "Chess.com"]
[Date "2024.01.30"]
[Round "11"]
[White "snowlord"]
[Black "JakubPulpan"]
[Result "1-0"]
[WhiteElo "2864"]
[BlackElo "2715"]
[TimeControl "180+1"]
[EndTime "16:05:09 PST"]
[Termination "snowlord won by resignation"]

1. Nf3 {[%clk 0:03:00.9]} 1... b6 {[%clk 0:02:31.2]} 2. e4 {[%clk 0:02:58.9]}
2... Bb7 {[%clk 0:02:29.9]} 3. Nc3 {[%clk 0:02:59.1]} 3... g6 {[%clk 0:02:18.9]}
4. d4 {[%clk 0:02:52.9]} 4... Bg7 {[%clk 0:02:18.9]} 5. Bd3 {[%clk 0:02:48.3]}
5... d6 {[%clk 0:02:04.7]} 6. Ne2 {[%clk 0:02:48.1]} 6... Nd7 {[%clk 0:02:02.6]}
7. Ng3 {[%clk 0:02:43.3]} 7... e6 {[%clk 0:02:00.3]} 8. c3 {[%clk 0:02:42.4]}
8... c5 {[%clk 0:02:00.6]} 9. Bf4 {[%clk 0:02:39.2]} 9... Qe7 {[%clk 0:01:52.4]}
10. e5 {[%clk 0:02:08.5]} 10... d5 {[%clk 0:01:34.2]} 11. h4 {[%clk 0:02:07.5]}
11... h5 {[%clk 0:01:27.2]} 12. Bg5 {[%clk 0:02:05.8]} 12... Qf8 {[%clk
0:01:25.9]} 13. a4 {[%clk 0:01:30.3]} 13... c4 {[%clk 0:01:21.6]} 14. Bc2 {[%clk
0:01:25.8]} 14... Ne7 {[%clk 0:01:16]} 15. b3 {[%clk 0:01:17.9]} 15... cxb3
{[%clk 0:01:14.8]} 16. Bd3 {[%clk 0:01:16]} 16... Nc6 {[%clk 0:01:15.7]} 17.
Qxb3 {[%clk 0:01:15.5]} 17... Na5 {[%clk 0:01:11.7]} 18. Qb2 {[%clk 0:01:09.2]}
18... Rc8 {[%clk 0:00:54.6]} 19. Ne2 {[%clk 0:01:05.2]} 19... Bh6 {[%clk
0:00:52.2]} 20. Nf4 {[%clk 0:01:00.5]} 20... Bxg5 {[%clk 0:00:50.6]} 21. hxg5
{[%clk 0:01:01]} 21... Rg8 {[%clk 0:00:39.4]} 22. Kf1 {[%clk 0:00:45.1]} 22...
Kd8 {[%clk 0:00:39.6]} 23. g3 {[%clk 0:00:44.6]} 23... Kc7 {[%clk 0:00:39.9]}
24. Kg2 {[%clk 0:00:45]} 24... Kb8 {[%clk 0:00:40.4]} 25. Qb4 {[%clk 0:00:37.7]}
25... Nc6 {[%clk 0:00:20.6]} 26. Qb5 {[%clk 0:00:37.3]} 26... Na5 {[%clk
0:00:20.2]} 27. Qxd7 {[%clk 0:00:30.8]} 27... Rxc3 {[%clk 0:00:19.3]} 28. Rhc1
{[%clk 0:00:26.2]} 28... Rc6 {[%clk 0:00:08.5]} 29. Rxc6 {[%clk 0:00:18.8]}
29... Nc4 {[%clk 0:00:08.6]} 1-0

[Event "Late-Titled-Tuesday-Blitz-January-30-2024"]
[Site "Chess.com"]
[Date "2024.01.30"]
[Round "11"]
[White "Cambek64"]
[Black "GAO"]
[Result "1-0"]
[WhiteElo "2513"]
[BlackElo "2385"]
[TimeControl "180+1"]
[EndTime "16:05:12 PST"]
[Termination "Cambek64 won by resignation"]

1. e4 {[%clk 0:03:00.9]} 1... c5 {[%clk 0:02:59.3]} 2. Nc3 {[%clk 0:02:44.9]}
2... Nc6 {[%clk 0:02:59.4]} 3. d3 {[%clk 0:02:45.1]} 3... g6 {[%clk 0:02:59.1]}
4. Be3 {[%clk 0:02:45.7]} 4... Bg7 {[%clk 0:02:59.7]} 5. Bxc5 {[%clk 0:02:44.7]}
5... Qa5 {[%clk 0:03:00.2]} 6. Be3 {[%clk 0:02:44.4]} 6... e6 {[%clk 0:02:53.7]}
7. Ne2 {[%clk 0:02:42.5]} 7... d5 {[%clk 0:02:54.3]} 8. exd5 {[%clk 0:02:42.4]}
8... exd5 {[%clk 0:02:55.2]} 9. d4 {[%clk 0:02:41]} 9... Be6 {[%clk 0:02:50.5]}
10. g3 {[%clk 0:02:19]} 10... Nge7 {[%clk 0:02:40.4]} 11. Bg2 {[%clk 0:02:19.3]}
11... h5 {[%clk 0:02:40.1]} 12. h4 {[%clk 0:02:15.9]} 12... Nf5 {[%clk 0:02:37]}
13. O-O {[%clk 0:02:16.1]} 13... Nxe3 {[%clk 0:02:34.6]} 14. fxe3 {[%clk
0:02:15.7]} 14... Ne7 {[%clk 0:02:34.2]} 15. Nf4 {[%clk 0:02:14.1]} 15... Nf5
{[%clk 0:02:33.8]} 16. Nfxd5 {[%clk 0:01:58.8]} 16... O-O {[%clk 0:02:31.9]} 17.
Qf3 {[%clk 0:01:49.5]} 17... Rfe8 {[%clk 0:02:13]} 18. Kh2 {[%clk 0:01:37.5]}
18... Nh6 {[%clk 0:02:08.2]} 19. Bh3 {[%clk 0:01:29.8]} 19... Rad8 {[%clk
0:01:47.3]} 20. Rae1 {[%clk 0:01:07.1]} 20... b5 {[%clk 0:01:42.6]} 21. a3
{[%clk 0:01:02.9]} 21... Rd7 {[%clk 0:01:24.4]} 22. Nf6+ {[%clk 0:00:56.3]}
22... Bxf6 {[%clk 0:01:22.8]} 23. Qxf6 {[%clk 0:00:56.6]} 23... b4 {[%clk
0:01:11.6]} 24. axb4 {[%clk 0:00:51.7]} 24... Qxb4 {[%clk 0:01:12.5]} 25. Qf4
{[%clk 0:00:47.4]} 25... Bxh3 {[%clk 0:01:05]} 26. Kxh3 {[%clk 0:00:43.6]} 26...
Ng4 {[%clk 0:01:02]} 27. Ne4 {[%clk 0:00:31.5]} 27... Kg7 {[%clk 0:00:32]} 28.
Nf6 {[%clk 0:00:29.6]} 28... Nxf6 {[%clk 0:00:20.4]} 29. Qxf6+ {[%clk
0:00:29.1]} 29... Kg8 {[%clk 0:00:21]} 30. d5 {[%clk 0:00:28.9]} 30... Qg4+
{[%clk 0:00:19.8]} 31. Kh2 {[%clk 0:00:27.9]} 31... Rf8 {[%clk 0:00:15.9]} 32.
Rf4 {[%clk 0:00:27.7]} 32... Rd6 {[%clk 0:00:07.3]} 33. Qxd6 {[%clk 0:00:26.2]}
1-0